bitfinex/quotes_SOLUSD_20251013
["timestamp","ask_amount","ask_price","bid_price","bid_amount"]
[1760317654333,8.84882726,196.63,196.59,17.80355053]
[1760317654518,8.84882726,196.64,196.59,17.80355053]
[1760317654713,0.7,196.66,196.59,17.80355053]
[1760317654934,8.84882726,196.63,196.59,5.08672872]
[1760317655328,8.84882726,196.62,196.59,5.08672872]
[1760317655638,20.8,196.67,196.59,18.49355053]
[1760317655836,8.84882726,196.65,196.59,27.34237779]
[1760317656336,0.50638039,196.73,196.59,27.34237779]
[1760317656337,0.7,196.75,196.64,8.84882726]
[1760317656640,0.7,196.75,196.65,8.84882726]
[1760317656943,8.84882726,196.76,196.7,8.84882726]
[1760317657125,0.7,196.79,196.71,8.84882726]
[1760317657327,0.8099031,196.83,196.67,31.67647521]
[1760317657518,8.84882726,196.82,196.75,8.84882726]
[1760317657842,8.84882726,196.82,196.67,10.87647521]
[1760317657843,8.84882726,196.8,196.73,8.84882726]
[1760317658039,8.84882726,196.81,196.74,8.84882726]
[1760317658334,8.84882726,196.79,196.72,8.84882726]
[1760317658532,0.10717058,196.76,196.73,8.84882726]
[1760317658735,8.95599784,196.76,196.71,17.79268974]
[1760317658941,8.84882726,196.74,196.71,5.08362564]
[1760317659338,0.10717058,196.76,196.73,8.84882726]
[1760317659522,8.84882726,196.75,196.71,17.79268974]
[1760317660543,8.84882726,196.75,196.71,12.7090641]
[1760317660836,0.10717058,196.76,196.74,8.84882726]
[1760317661034,0.09538606,196.78,196.71,12.7090641]
[1760317661035,1e-08,196.78,196.75,10.04708647]
[1760317661241,1e-08,196.78,196.77,8.84882726]
[1760317661432,0.09774391,196.81,196.77,8.84882726]
[1760317661433,1e-08,196.81,196.77,8.84882726]
[1760317661743,1e-08,196.81,196.73,0.69]
[1760317661939,1e-08,196.81,196.74,0.69]
[1760317662154,8.84882726,196.79,196.73,8.84882726]
[1760317662356,8.84882726,196.77,196.71,12.7090641]
[1760317662553,8.84882726,196.72,196.64,5.08543531]
[1760317662719,29.64882726,196.69,196.64,5.08543531]
[1760317662919,20.8,196.74,196.67,8.84882726]
[1760317663131,8.84882726,196.71,196.64,26.64785085]
[1760317663327,8.84882726,196.68,196.64,17.79902359]
[1760317663546,8.84882726,196.69,196.64,17.79902359]
[1760317663736,8.84882726,196.7,196.64,26.64785085]
[1760317663928,20.8,196.74,196.67,8.84882726]
[1760317664126,20.8,196.74,196.65,0.67]
[1760317664127,8.84882726,196.68,196.64,17.79902359]
[1760317664448,8.84882726,196.71,196.64,18.46902359]
[1760317664620,8.84882726,196.69,196.64,18.46902359]
[1760317665230,20.8,196.73,196.65,9.51882726]
[1760317665436,8.84882726,196.72,196.66,8.84882726]
[1760317665643,8.84882726,196.72,196.65,9.51882726]
[1760317666438,8.84882726,196.73,196.66,26.64604072]
[1760317666637,8.84882726,196.75,196.68,8.84882726]
[1760317666842,0.69,196.77,196.66,43.89180412]
[1760317666843,0.69,196.77,196.69,8.84882726]
[1760317667038,8.84882726,196.76,196.69,9.51882726]
[1760317667331,8.84882726,196.78,196.71,8.84882726]
[1760317667540,8.84882726,196.79,196.72,9.51882726]
[1760317667755,1e-08,196.81,196.77,8.84882726]
[1760317668068,1e-08,196.81,196.77,9.51882726]
[1760317668349,1e-08,196.81,196.78,8.84882726]
[1760317668534,0.09830419,196.83,196.79,5.08155902]
[1760317668860,0.78830419,196.83,196.79,17.78545657]
[1760317669029,0.09830419,196.83,196.79,26.63428383]
[1760317669229,0.09830419,196.83,196.8,8.84882726]
[1760317669453,0.09830419,196.83,196.71,0.50836256]
[1760317669454,8.84882726,196.81,196.69,0.67]
[1760317669659,8.84882726,196.78,196.71,8.84882726]
[1760317670252,20.8,196.8,196.7,17.79359429]
[1760317670432,8.84882726,196.79,196.72,17.79178527]
[1760317670634,0.09830419,196.83,196.75,8.84882726]
[1760317670834,0.09830419,196.83,196.77,8.84882726]
[1760317671557,0.09830419,196.83,196.81,8.84882726]
[1760317671946,11.50328581,196.91,196.82,0.67]
[1760317672150,8.84882726,196.91,196.84,8.84882726]
[1760317672455,2.65386208,196.95,196.89,17.77642337]
[1760317672632,8.84882726,196.97,196.89,17.77642337]
[1760317672833,8.84882726,196.95,196.89,17.77642337]
[1760317673352,11.50216887,196.99,196.9,9.51882726]
[1760317673655,8.84882726,196.99,196.9,9.51882726]
[1760317674049,21.0,197.01,196.89,43.17131391]
[1760317674050,8.84882726,196.97,196.89,17.77642337]
[1760317674346,8.84882726,196.95,196.89,17.77642337]
[1760317674744,8.84882726,196.93,196.89,5.0789781]
[1760317674940,8.84882726,196.93,196.87,5.07934532]
[1760317675142,8.84882726,196.89,196.87,5.07934532]
[1760317675456,8.84882726,196.89,196.83,13.40096287]
[1760317675665,8.84882726,196.89,196.85,5.07976459]
[1760317675854,20.8,196.95,196.85,13.92859185]
[1760317676031,8.84882726,196.96,196.87,8.84882726]
[1760317676233,8.84882726,196.96,196.88,0.7]
[1760317676545,8.84882726,196.96,196.9,17.77552056]
[1760317676940,8.84882726,196.99,196.91,0.7]
[1760317677144,8.84882726,196.97,196.91,0.7]
[1760317677550,5.94799479,196.94,196.9,5.07872016]
[1760317677931,5.94799479,196.92,196.88,5.07910757]
[1760317678431,0.10167664,196.91,196.88,5.07910757]
[1760317678662,0.10167664,196.91,196.88,5.77910757]
[1760317679237,0.10167664,196.91,196.88,17.77719777]
[1760317679673,0.10167664,196.91,196.9,5.94799479]
[1760317679870,0.10167664,196.91,196.88,17.77719777]
[1760317680260,5.94799479,196.9,196.86,5.07950648]
[1760317680458,5.94799479,196.87,196.83,5.08041889]
[1760317680763,5.94799479,196.84,196.77,5.08184351]
[1760317680958,26.74799479,196.87,196.79,6.64799479]
[1760317681150,0.10167664,196.91,196.81,5.94799479]
[1760317681349,26.74799479,196.89,196.8,0.7]
[1760317681662,5.94799479,196.87,196.8,5.94799479]
[1760317681854,20.8,196.89,196.77,17.7870323]
[1760317682042,5.94799479,196.86,196.79,5.94799479]
[1760317682241,5.94799479,196.85,196.77,23.73502709]
[1760317682444,0.71,196.86,196.77,5.08184351]
[1760317682445,5.94799479,196.81,196.77,5.08184351]
[1760317682767,5.94799479,196.79,196.71,11.03162043]
[1760317682945,5.94799479,196.78,196.71,17.79268974]
[1760317683172,5.94799479,196.83,196.76,5.94799479]
[1760317683351,26.74799479,196.83,196.75,5.94799479]
[1760317683549,5.94799479,196.8,196.71,43.21081794]
[1760317683737,5.94799479,196.78,196.71,49.15881273]
[1760317683941,5.94799479,196.78,196.71,43.21081794]
[1760317684145,5.94799479,196.77,196.71,17.79268974]
[1760317684442,0.71,196.85,196.74,5.94799479]
[1760317684755,5.94799479,196.84,196.76,5.94799479]
[1760317684955,0.10167664,196.91,196.76,5.94799479]
[1760317684956,0.10167664,196.91,196.8,5.94799479]
[1760317685165,5.94799479,196.87,196.8,5.94799479]
[1760317685374,5.94799479,196.82,196.77,0.7]
[1760317685550,5.94799479,196.84,196.78,5.94799479]
[1760317685860,5.94799479,196.88,196.82,5.94799479]
[1760317686070,5.94799479,196.88,196.79,0.7]
[1760317686071,0.10167664,196.91,196.87,5.94799479]
[1760317686258,5.94799479,196.88,196.8,20.8]
[1760317686457,5.94799479,196.86,196.79,0.7]
[1760317686654,5.94799479,196.84,196.8,5.08130081]
[1760317687342,5.94799479,196.86,196.81,0.7]
[1760317687543,0.10167664,196.91,196.82,0.7]
[1760317687760,5.94799479,196.88,196.82,0.7]
[1760317688166,20.8,196.9,196.83,5.94799479]
[1760317688356,0.10167664,196.91,196.87,5.94799479]
[1760317688668,0.10167664,196.91,196.9,5.94799479]
[1760317688864,6.04967143,196.91,196.9,5.07872016]
[1760317689072,6.04967143,196.91,196.86,5.0797521]
[1760317689254,5.94799479,196.88,196.86,5.0797521]
[1760317689446,5.94799479,196.88,196.8,26.10650406]
[1760317689447,5.94799479,196.89,196.83,11.72852113]
[1760317689656,0.10167664,196.91,196.86,5.94799479]
[1760317689869,5.94799479,196.88,196.83,5.08052634]
[1760317690178,5.94799479,196.88,196.83,17.78184219]
[1760317690469,0.10167664,196.91,196.85,5.94799479]
[1760317690684,6.04967143,196.91,196.84,6.64799479]
[1760317690865,5.94799479,196.9,196.85,5.08001016]
[1760317691260,5.94799479,196.89,196.85,5.08001016]
[1760317691653,5.94799479,196.89,196.85,17.78003556]
[1760317691851,0.10167664,196.91,196.87,5.94799479]
[1760317692072,0.10167664,196.91,196.88,5.94799479]
[1760317692367,0.10167664,196.91,196.89,0.7]
[1760317692574,0.10167664,196.91,196.9,6.64799479]
[1760317692768,1e-08,196.92,196.9,6.64799479]
[1760317692968,1e-08,196.92,196.91,12.23430325]
[1760317693182,1e-08,196.94,196.91,24.93045885]
[1760317693374,1e-08,196.94,196.93,5.94799479]
[1760317693686,1e-08,196.94,196.91,17.77461784]
[1760317694177,1e-08,196.94,196.91,5.07846224]
[1760317694367,5.9479948,196.94,196.91,5.07846224]
[1760317694955,5.9479948,196.94,196.88,12.69800191]
[1760317694956,5.9479948,196.94,196.88,17.77723799]
[1760317695154,5.94799479,196.92,196.87,5.07934807]
[1760317695380,5.94799479,196.89,196.85,17.77984582]
[1760317695569,5.94799479,196.92,196.86,0.7]
[1760317695755,1e-08,196.94,196.89,5.94799479]
[1760317695957,1e-08,196.94,196.93,5.94799479]
[1760317696588,1e-08,196.95,196.94,10.87647521]
[1760317696899,1e-08,197.0,196.97,10.87647521]
[1760317697185,0.2,197.05,196.99,11.0243946]
[1760317697479,0.2,197.05,196.99,17.76739935]
[1760317697774,0.2,197.05,197.0,5.94799479]
[1760317697966,0.2,197.05,197.02,5.94799479]
[1760317698161,0.2,197.05,197.04,5.94799479]
[1760317698465,0.29964201,197.05,197.04,5.94799479]
[1760317698671,0.29964201,197.05,196.99,17.76739935]
[1760317698851,0.29964201,197.05,197.04,5.94799479]
[1760317699050,0.10749849,197.06,197.04,11.02310644]
[1760317699253,5.94799479,197.17,197.06,31.67647521]
[1760317699476,5.94799479,197.19,197.12,5.94799479]
[1760317699672,5.94799479,197.21,197.15,5.94799479]
[1760317699970,0.2,197.22,197.16,5.94799479]
[1760317700283,0.2,197.22,197.14,0.7]
[1760317700461,0.2,197.22,197.17,5.94799479]
[1760317700655,0.2,197.22,197.18,6.64799479]
[1760317700880,0.2,197.22,197.19,5.94799479]
[1760317701085,0.2,197.22,197.21,5.07073677]
[1760317701454,0.2,197.22,197.21,11.71873156]
[1760317701658,0.2,197.22,197.21,5.77073677]
[1760317701857,0.2,197.22,197.21,11.71873156]
[1760317702068,2.64910159,197.31,197.21,18.44757871]
[1760317702261,5.94799479,197.3,197.22,5.94799479]
[1760317702562,5.94799479,197.27,197.21,17.74757871]
[1760317703067,5.94799479,197.26,197.21,5.07073677]
[1760317703265,5.94799479,197.26,197.22,0.7]
[1760317703464,5.94799479,197.26,197.21,5.07073677]
[1760317703781,21.51,197.3,197.21,5.77073677]
[1760317704078,5.94799479,197.28,197.22,0.7]
[1760317704276,5.94799479,197.31,197.24,5.94799479]
[1760317704777,5.94799479,197.3,197.23,5.94799479]
[1760317705080,0.50638039,197.29,197.21,0.7]
[1760317705282,20.8,197.29,197.23,5.94799479]
[1760317705469,2.64878616,197.34,197.25,5.94799479]
[1760317705790,0.67,197.41,197.28,16.82447]
[1760317705957,2.64820106,197.4,197.31,5.94799479]
[1760317706279,5.94799479,197.42,197.34,5.94799479]
[1760317706464,5.94799479,197.42,197.35,0.7]
[1760317706669,26.74799479,197.42,197.35,0.7]
[1760317706974,5.94799479,197.42,197.36,0.7]
[1760317707187,5.94799479,197.42,197.34,5.94799479]
[1760317707485,5.94799479,197.38,197.31,18.43858395]
[1760317707665,5.94799479,197.37,197.31,18.43858395]
[1760317709876,0.2,197.39,197.35,5.94799479]
[1760317710286,0.2,197.39,197.36,0.7]
[1760317710486,5.94799479,197.38,197.31,49.72741296]
[1760317710681,0.2,197.39,197.32,6.64799479]
[1760317710885,0.2,197.39,197.32,0.7]
[1760317711185,0.2,197.39,197.31,43.07941817]
[1760317711186,5.94799479,197.34,197.31,5.06816684]
[1760317711383,5.94799479,197.32,197.29,5.06854455]
[1760317711685,5.94799479,197.32,197.28,12.67205771]
[1760317711686,20.8,197.37,197.3,0.7]
[1760317711889,5.94799479,197.36,197.3,0.7]
[1760317712069,5.94799479,197.33,197.27,10.87647521]
[1760317712593,5.94799479,197.33,197.28,0.7]
[1760317712971,5.94799479,197.37,197.3,16.82447]
[1760317713169,0.2,197.39,197.31,0.7]
[1760317713488,0.2,197.39,197.33,23.68478087]
[1760317713788,5.94799479,197.37,197.33,17.73678608]
[1760317713987,0.2,197.39,197.34,6.64799479]
[1760317714173,0.2,197.39,197.36,5.94799479]
[1760317714371,1e-08,197.39,197.36,5.94799479]
[1760317714567,1e-08,197.39,197.38,5.94799479]
[1760317715073,1e-08,197.39,197.34,10.87647521]
[1760317715278,1e-08,197.39,197.38,17.52447]
[1760317715785,1e-08,197.39,197.38,22.59083943]
[1760317717571,1e-08,197.39,197.38,11.71436422]
[1760317717772,1e-08,197.39,197.38,5.06636943]
[1760317717990,1e-08,197.39,197.38,11.71436422]
[1760317718287,1e-08,197.39,197.38,22.59083943]
[1760317718486,5.94799479,197.47,197.38,22.59083943]
[1760317718487,0.10521792,197.4,197.39,10.87647521]
[1760317718791,5.7325552,197.53,197.39,10.87647521]
[1760317718792,0.09590056,197.43,197.39,17.52447]
[1760317719089,0.10334481,197.45,197.42,5.94799479]
[1760317719391,0.10992462,197.46,197.45,10.87647521]
[1760317719596,0.10992462,197.46,197.45,5.0645733]
[1760317720396,0.10992462,197.46,197.45,5.7645733]
[1760317720707,0.10992462,197.46,197.45,5.0645733]
[1760317720895,0.10992462,197.46,197.43,5.06492287]
[1760317721272,6.05791941,197.46,197.43,5.06492287]
[1760317721473,5.94799479,197.45,197.41,5.06545824]
[1760317721674,6.05791941,197.46,197.4,12.66427658]
[1760317722099,0.10992462,197.46,197.4,12.66427658]
[1760317722292,0.10992462,197.46,197.43,5.94799479]
[1760317722800,0.10992462,197.46,197.43,6.64799479]
[1760317723289,0.10992462,197.46,197.4,13.17086219]
[1760317723290,0.10992462,197.46,197.4,18.61227137]
[1760317723793,0.10992462,197.46,197.4,17.7301327]
[1760317724203,6.05791941,197.46,197.4,17.7301327]
[1760317724411,0.10992462,197.46,197.4,17.7301327]
[1760317725097,5.94799479,197.44,197.4,17.7301327]
[1760317725305,0.10992462,197.46,197.4,17.7301327]
[1760317725507,6.05791941,197.46,197.4,17.7301327]
[1760317726098,5.94799479,197.45,197.4,17.7301327]
[1760317726304,0.10992462,197.46,197.4,17.7301327]
[1760317726481,0.10992462,197.46,197.41,0.7]
[1760317726804,5.94799479,197.44,197.4,17.7301327]
[1760317726986,5.94799479,197.45,197.4,17.7301327]
[1760317727292,5.94799479,197.45,197.4,12.66427658]
[1760317727498,5.94799479,197.43,197.4,12.66427658]
[1760317727881,0.10992462,197.46,197.41,0.7]
[1760317728075,0.10992462,197.46,197.42,0.7]
[1760317728283,0.10992462,197.46,197.44,5.94799479]
[1760317728597,0.10992462,197.46,197.43,10.87647521]
[1760317728598,1e-08,197.47,197.45,6.64799479]
[1760317728780,1e-08,197.48,197.46,16.82447]
[1760317728977,1e-08,197.48,197.46,0.7]
[1760317729188,1e-08,197.48,197.47,6.64799479]
[1760317729791,1e-08,197.48,197.45,20.8]
[1760317730105,1e-08,197.48,197.47,0.7]
[1760317730299,1e-08,197.48,197.45,0.7]
[1760317730509,5.94799479,197.47,197.42,5.06534292]
[1760317730685,5.94799479,197.44,197.4,5.06585612]
[1760317731087,5.94799479,197.45,197.4,13.36464032]
[1760317731310,1e-08,197.48,197.4,13.36464032]
[1760317731480,5.94799479,197.46,197.4,13.36464032]
[1760317731805,1e-08,197.48,197.41,6.64799479]
[1760317733213,1e-08,197.48,197.42,17.72870022]
[1760317733609,5.94799479,197.47,197.42,17.72870022]
[1760317733789,5.94799479,197.46,197.42,5.06534292]
[1760317733990,20.80000001,197.48,197.43,0.7]
[1760317734192,26.7479948,197.48,197.43,0.7]
[1760317734386,20.80000001,197.48,197.43,0.7]
[1760317734590,5.9479948,197.48,197.43,0.7]
[1760317734786,5.94799479,197.46,197.42,17.72870022]
[1760317734984,5.94799479,197.45,197.42,17.72870022]
[1760317735311,5.94799479,197.46,197.39,6.61799479]
[1760317735616,5.94799479,197.47,197.4,5.94799479]
[1760317736114,5.94799479,197.47,197.39,6.61799479]
[1760317736318,5.94799479,197.46,197.39,6.61799479]
[1760317736615,5.94799479,197.42,197.34,11.54647521]
[1760317736813,5.94799479,197.42,197.31,0.67]
[1760317736814,5.94799479,197.38,197.31,0.67]
[1760317737105,5.94799479,197.36,197.31,0.67]
[1760317737307,5.94799479,197.39,197.32,18.40768497]
[1760317737699,5.94799479,197.37,197.32,17.73768497]
[1760317738014,5.94799479,197.36,197.32,17.73768497]
[1760317738309,5.94799479,197.34,197.32,5.06790999]
[1760317738614,6.04460369,197.33,197.3,5.06818054]
[1760317739288,5.94799479,197.31,197.27,5.0691945]
[1760317739486,5.94799479,197.28,197.23,17.74577903]
[1760317739687,8.82913282,197.28,197.23,17.74577903]
[1760317739889,8.82913282,197.28,197.23,18.41577903]
[1760317740091,8.82913282,197.3,197.24,0.67]
[1760317740293,0.0966089,197.33,197.27,8.82913282]
[1760317740500,8.82913282,197.32,197.25,0.67]
[1760317740714,8.92574172,197.33,197.26,8.82913282]
[1760317740885,8.82913282,197.32,197.25,0.67]
[1760317741085,8.82913282,197.32,197.25,9.49913282]
[1760317741287,0.0966089,197.33,197.27,17.74218076]
[1760317741508,8.82913282,197.32,197.27,17.74218076]
[1760317741714,0.0966089,197.33,197.27,80.4]
[1760317741715,8.82913282,197.28,197.27,80.4]
[1760317741899,9.50913282,197.28,197.27,80.4]
[1760317742091,8.82913282,197.3,197.27,80.4]
[1760317742285,0.0966089,197.33,197.27,214.5]
[1760317742494,8.82913282,197.28,197.27,80.4]
[1760317742685,8.82913282,197.3,197.27,80.4]
[1760317742889,29.62913282,197.28,197.27,80.4]
[1760317743292,30.30913282,197.28,197.27,80.4]
[1760317743498,0.7766089,197.33,197.27,80.4]
[1760317743713,0.0966089,197.33,197.27,220.2391945]
[1760317743890,8.82913282,197.32,197.27,232.91218076]
[1760317744198,8.82913282,197.3,197.27,219.5691945]
[1760317744398,8.82913282,197.28,197.27,80.4]
[1760317744996,9.50913282,197.28,197.27,80.4]
[1760317745197,20.8,197.25,197.23,80.4]
[1760317745394,9.50913282,197.24,197.23,80.4]
[1760317745722,0.68,197.32,197.25,80.4]
[1760317745886,8.82913282,197.28,197.25,214.5]
[1760317746208,20.8,197.29,197.25,214.5]
[1760317746510,8.82913282,197.32,197.25,223.32913282]
[1760317746710,0.0966089,197.33,197.3,8.82913282]
[1760317746917,0.0966089,197.33,197.32,8.82913282]
[1760317747421,0.0966089,197.33,197.32,5.06790999]
[1760317749324,8.92574172,197.33,197.31,5.06816684]
[1760317750021,0.0966089,197.33,197.31,5.06816684]
[1760317750222,8.92574172,197.33,197.3,5.0684152]
[1760317750522,20.8,197.3,197.21,0.67]
[1760317750746,20.8,197.3,197.19,8.82913282]
[1760317750747,8.82913282,197.22,197.19,5.07125107]
[1760317750928,20.8,197.26,197.19,5.07125107]
[1760317751099,8.82913282,197.24,197.19,5.07125107]
[1760317751423,8.82913282,197.23,197.19,18.41937876]
[1760317751628,8.82913282,197.23,197.19,17.74937876]
[1760317751826,12.6706586,197.31,197.19,17.74937876]
[1760317751827,20.8,197.3,197.2,9.49913282]
[1760317752129,8.82913282,197.32,197.25,8.82913282]
[1760317752314,0.0966089,197.33,197.26,9.49913282]
[1760317752517,8.92574172,197.33,197.26,9.49913282]
[1760317753023,0.0966089,197.33,197.26,9.49913282]
[1760317753242,8.82913282,197.29,197.22,0.67]
[1760317753530,8.82913282,197.29,197.23,17.74577903]
[1760317753712,8.82913282,197.25,197.23,5.07022258]
[1760317753916,8.82913282,197.24,197.2,12.67712555]
[1760317754119,8.82913282,197.23,197.21,5.07073677]
[1760317754313,8.82913282,197.22,197.18,0.2]
[1760317754514,8.82913282,197.26,197.19,27.24851158]
[1760317754826,8.82913282,197.25,197.19,17.74937876]
[1760317755027,8.82913282,197.23,197.19,17.74937876]
[1760317755512,0.68,197.28,197.2,0.67]
[1760317755829,20.8,197.29,197.21,8.82913282]
[1760317756031,8.82913282,197.28,197.21,8.82913282]
[1760317756330,29.62913282,197.29,197.21,8.82913282]
[1760317756538,29.62913282,197.29,197.22,8.82913282]
[1760317756720,29.62913282,197.29,197.2,0.67]
[1760317756923,8.82913282,197.27,197.2,0.67]
[1760317757125,8.82913282,197.23,197.19,17.74937876]
[1760317757305,8.82913282,197.21,197.18,5.27150267]
[1760317757510,8.82913282,197.2,197.18,5.27150267]
[1760317757730,8.82913282,197.19,197.18,5.27150267]
[1760317757912,8.82913282,197.19,197.18,0.2]
[1760317758507,20.4824843,197.19,197.18,0.2]
[1760317758727,20.8,197.16,197.06,0.67]
[1760317758925,8.82913282,197.11,197.07,17.75992427]
[1760317759534,8.82913282,197.09,197.06,5.07459656]
[1760317759836,8.82913282,197.08,197.06,5.07459656]
[1760317760040,0.68,197.12,197.06,5.07459656]
[1760317760231,8.82913282,197.07,197.06,5.07459656]
[1760317760538,8.82913282,197.07,197.03,5.07536923]
[1760317760760,8.82913282,197.06,197.03,5.07536923]
[1760317760921,8.82913282,197.07,197.03,17.76379231]
[1760317761443,8.82913282,197.05,197.02,5.07562683]
[1760317761615,8.82913282,197.03,197.02,5.07562683]
[1760317762042,0.50638039,197.08,197.02,17.76469392]
[1760317762241,8.82913282,197.08,197.02,18.43469392]
[1760317762546,8.82913282,197.09,197.02,27.26382674]
[1760317763256,20.8,197.1,197.02,18.43469392]
[1760317763257,8.82913282,197.08,197.02,18.43469392]
[1760317763455,8.82913282,197.05,197.02,17.76469392]
[1760317763832,8.82913282,197.06,197.02,17.76469392]
[1760317764051,5.07207538,197.16,197.03,9.49913282]
[1760317764238,8.82913282,197.07,197.03,0.67]
[1760317764548,8.82913282,197.08,197.03,0.67]
[1760317764857,8.82913282,197.06,197.02,17.76469392]
[1760317765040,8.82913282,197.05,197.02,17.76469392]
[1760317765342,8.82913282,197.07,197.03,0.72]
[1760317765833,8.82913282,197.11,197.04,22.23691195]
[1760317766032,8.82913282,197.12,197.05,9.54913282]
[1760317767045,3.32111791,197.17,197.06,8.82913282]
[1760317767359,8.82913282,197.13,197.07,0.72]
[1760317767858,8.82913282,197.13,197.08,17.75928556]
[1760317768168,8.82913282,197.13,197.08,18.47928556]
[1760317768455,8.82913282,197.13,197.08,17.75928556]
[1760317768653,8.82913282,197.14,197.09,0.72]
[1760317768959,8.82913282,197.15,197.1,0.72]
[1760317769157,8.92600909,197.19,197.13,8.82913282]
[1760317769360,8.92600909,197.19,197.08,18.47928556]
[1760317769361,8.82913282,197.15,197.08,18.47928556]
[1760317769533,8.82913282,197.14,197.08,18.47928556]
[1760317769728,0.09687627,197.19,197.09,8.82913282]
[1760317769934,8.82913282,197.18,197.11,8.82913282]
[1760317770132,8.82913282,197.18,197.11,0.72]
[1760317770437,8.82913282,197.14,197.08,26.58841838]
[1760317770752,8.82913282,197.15,197.08,27.30841838]
[1760317771436,8.82913282,197.16,197.08,18.47928556]
[1760317771636,8.82913282,197.16,197.09,9.54913282]
[1760317771851,8.82913282,197.16,197.1,17.7574835]
[1760317772059,8.82913282,197.12,197.1,5.07356671]
[1760317772741,0.50638039,197.17,197.11,0.72]
[1760317772950,8.92600909,197.19,197.12,8.82913282]
[1760317773678,8.92600909,197.19,197.1,17.7574835]
[1760317773679,0.09687627,197.19,197.15,8.82913282]
[1760317773836,0.09687627,197.19,197.18,5.07150826]
[1760317774940,8.92600909,197.19,197.14,5.07253728]
[1760317775148,8.82913282,197.18,197.14,5.07253728]
[1760317775444,8.82913282,197.16,197.12,5.07288031]
[1760317775644,8.82913282,197.18,197.13,0.72]
[1760317775856,0.09687627,197.19,197.14,0.72]
[1760317776164,8.92600909,197.19,197.14,0.72]
[1760317776362,0.09687627,197.19,197.14,0.72]
[1760317776966,0.09687627,197.19,197.15,0.72]
[1760317777462,0.09687627,197.19,197.14,8.82913282]
[1760317777764,0.09687627,197.19,197.16,8.82913282]
[1760317778068,0.09687627,197.19,197.17,5.07176548]
[1760317778286,0.09687627,197.19,197.17,5.79176548]
[1760317778765,0.09356151,197.18,197.17,5.79176548]
[1760317779742,0.09356151,197.18,197.17,5.07176548]
[1760317779946,0.09356151,197.18,197.17,0.72]
[1760317780464,0.10854278,197.19,197.17,9.54913282]
[1760317780798,0.0964853,197.2,197.18,9.54913282]
[1760317780943,1e-08,197.24,197.22,8.82913282]
[1760317781265,1e-08,197.24,197.23,8.82913282]
[1760317781468,0.67,197.35,197.24,10.87647521]
[1760317781469,1e-08,197.26,197.24,10.87647521]
[1760317781669,9.49913282,197.38,197.24,0.72]
[1760317781837,8.82913282,197.32,197.25,17.74397971]
[1760317782177,8.82913282,197.26,197.25,5.06970849]
[1760317782352,10.87647521,197.33,197.25,0.72]
[1760317782668,29.62913282,197.3,197.23,8.82913282]
[1760317782847,8.82913282,197.25,197.21,17.74748394]
[1760317783162,8.82913282,197.25,197.21,5.070642]
[1760317783462,8.82913282,197.29,197.22,9.54913282]
[1760317783849,8.82913282,197.29,197.23,17.74577903]
[1760317784169,29.62913282,197.24,197.16,8.82913282]
[1760317784474,0.68,197.31,197.21,8.82913282]
[1760317784683,8.82913282,197.27,197.2,9.54913282]
[1760317784886,8.82913282,197.27,197.2,0.72]
[1760317785054,8.82913282,197.24,197.17,8.82913282]
[1760317785257,8.82913282,197.24,197.15,0.72]
[1760317785492,8.82913282,197.23,197.16,8.82913282]
[1760317785693,8.82913282,197.22,197.14,8.82913282]
[1760317785978,8.82913282,197.19,197.13,43.83875411]
[1760317786294,0.68,197.25,197.14,9.54913282]
[1760317786504,8.82913282,197.2,197.14,0.72]
[1760317786781,8.82913282,197.18,197.13,17.75467159]
[1760317787283,8.82913282,197.18,197.13,18.47467159]
[1760317787487,8.82913282,197.2,197.14,0.72]
[1760317787661,20.8,197.21,197.17,8.82913282]
[1760317787864,8.82913282,197.26,197.19,8.82913282]
[1760317788178,11.55647521,197.31,197.2,26.57761151]
[1760317788179,8.82913282,197.27,197.2,26.57761151]
[1760317788365,8.82913282,197.27,197.21,8.82913282]
[1760317788560,8.82913282,197.27,197.2,17.74847869]
[1760317788771,20.8,197.25,197.2,5.07099391]
[1760317788963,8.82913282,197.21,197.17,5.07176548]
[1760317789285,8.82913282,197.19,197.12,8.82913282]
[1760317789475,8.82913282,197.18,197.11,8.82913282]
[1760317789782,8.82913282,197.16,197.09,9.54913282]
[1760317789974,8.82913282,197.15,197.09,0.72]
[1760317790171,8.82913282,197.14,197.07,9.54913282]
[1760317790756,8.82913282,197.15,197.08,8.82913282]
[1760317790961,12.67646029,197.22,197.07,0.72]
[1760317790962,0.68,197.24,197.13,8.82913282]
[1760317791187,8.82913282,197.19,197.12,8.82913282]
[1760317791368,29.62913282,197.2,197.13,8.82913282]
[1760317791884,8.82913282,197.18,197.11,8.82913282]